{"text_format":"3","workbook":"xlsx","n_sheets":1,"sheets":["Bảng chấm công hàng năm"],"not_rendered":{"defined_names":2},"read":"whole","date_system":"1900"}

{"sheet":"Bảng chấm công hàng năm","index":0,"n_rows":140,"n_cols":12,"rows_kept":140,"merged":[[0,1,1,11],[2,6,2,7],[2,8,2,9],[5,1,5,11],[39,1,39,11],[73,1,73,11],[107,1,107,11]]}
[null,"Phiếu chấm công nhân viên"]
[]
[null,"Tên nhân viên:",null,"Email:",null,null,"Tổng từ đầu năm đến nay:"]
[null,"Người quản lý:",null,"Điện thoại:",null,null,"Số giờ làm việc thông thường:",{"$f":"SUM(C16,C27,C38,C50,C61,C72,C84,C95,C106,C118,C129,C140)","v":0},"Số giờ làm thêm:",{"$f":"SUM(F16,F27,F38,F50,F61,F72,F84,F95,F106,F118,F129,F140)","v":0},"Tổng cộng:",{"$f":"SUM(H4:J4)","v":0}]
[]
[null,"Tháng Một, Tháng Hai, Tháng Ba      Phiếu chấm công nhân viên: Hàng ngày, hàng tuần, hàng tháng, hàng năm"]
[null,"Tháng Một","Tuần 1","Giờ làm thêm","Tuần 2","Giờ làm thêm ","Tuần 3","Giờ làm thêm  ","Tuần 4","Giờ làm thêm   ","Tuần 5","Giờ làm thêm    "]
[null,"Thứ Hai"]
[null,"Thứ Ba"]
[null,"Thứ Tư"]
[null,"Thứ Năm"]
[null,"Thứ Sáu"]
[null,"Thứ Bảy"]
[null,"Chủ Nhật"]
[null,"Tổng số giờ hàng tuần",{"$f":"SUBTOTAL(109,Tháng_1[Tuần 1])","v":0},{"$f":"SUBTOTAL(109,Tháng_1[Giờ làm thêm])","v":0},{"$f":"SUBTOTAL(109,Tháng_1[Tuần 2])","v":0},{"$f":"SUBTOTAL(109,Tháng_1[[Giờ làm thêm ]])","v":0},{"$f":"SUBTOTAL(109,Tháng_1[Tuần 3])","v":0},{"$f":"SUBTOTAL(109,Tháng_1[[Giờ làm thêm  ]])","v":0},{"$f":"SUBTOTAL(109,Tháng_1[Tuần 4])","v":0},{"$f":"SUBTOTAL(109,Tháng_1[[Giờ làm thêm   ]])","v":0},{"$f":"SUBTOTAL(109,Tháng_1[Tuần 5])","v":0},{"$f":"SUBTOTAL(109,Tháng_1[[Giờ làm thêm    ]])","v":0}]
[null,"Tổng Thg1: Số giờ làm việc thông thường",{"$f":"SUM(Tháng_1[[#Totals],[Tuần 1]],Tháng_1[[#Totals],[Tuần 2]],Tháng_1[[#Totals],[Tuần 3]],Tháng_1[[#Totals],[Tuần 4]],Tháng_1[[#Totals],[Tuần 5]])","v":0},"Tổng Thg1: Giờ làm thêm",null,{"$f":"SUM(Tháng_1[[#Totals],[Giờ làm thêm]],Tháng_1[[#Totals],[Giờ làm thêm ]],Tháng_1[[#Totals],[Giờ làm thêm  ]],Tháng_1[[#Totals],[Giờ làm thêm   ]],Tháng_1[[#Totals],[Giờ làm thêm    ]])","v":0}]
[]
[null,"Tháng Hai","Tuần 1","Giờ làm thêm","Tuần 2","Giờ làm thêm ","Tuần 3","Giờ làm thêm  ","Tuần 4","Giờ làm thêm   ","Tuần 5","Giờ làm thêm    "]
[null,"Thứ Hai"]
[null,"Thứ Ba"]
[null,"Thứ Tư"]
[null,"Thứ Năm"]
[null,"Thứ Sáu"]
[null,"Thứ Bảy"]
[null,"Chủ Nhật"]
[null,"Tổng số giờ hàng tuần",{"$f":"SUBTOTAL(109,Tháng_2[Tuần 1])","v":0},{"$f":"SUBTOTAL(109,Tháng_2[Giờ làm thêm])","v":0},{"$f":"SUBTOTAL(109,Tháng_2[Tuần 2])","v":0},{"$f":"SUBTOTAL(109,Tháng_2[[Giờ làm thêm ]])","v":0},{"$f":"SUBTOTAL(109,Tháng_2[Tuần 3])","v":0},{"$f":"SUBTOTAL(109,Tháng_2[[Giờ làm thêm  ]])","v":0},{"$f":"SUBTOTAL(109,Tháng_2[Tuần 4])","v":0},{"$f":"SUBTOTAL(109,Tháng_2[[Giờ làm thêm   ]])","v":0},{"$f":"SUBTOTAL(109,Tháng_2[Tuần 5])","v":0},{"$f":"SUBTOTAL(109,Tháng_2[[Giờ làm thêm    ]])","v":0}]
[null,"Tổng Thg2: Số giờ làm việc thông thường",{"$f":"SUM(Tháng_2[[#Totals],[Tuần 1]],Tháng_2[[#Totals],[Tuần 2]],Tháng_2[[#Totals],[Tuần 3]],Tháng_2[[#Totals],[Tuần 4]],Tháng_2[[#Totals],[Tuần 5]])","v":0},"Tổng Thg2: Giờ làm thêm",null,{"$f":"SUM(Tháng_2[[#Totals],[Giờ làm thêm]],Tháng_2[[#Totals],[Giờ làm thêm ]],Tháng_2[[#Totals],[Giờ làm thêm  ]],Tháng_2[[#Totals],[Giờ làm thêm   ]],Tháng_2[[#Totals],[Giờ làm thêm    ]])","v":0}]
[]
[null,"Tháng Ba","Tuần 1","Giờ làm thêm","Tuần 2","Giờ làm thêm ","Tuần 3","Giờ làm thêm  ","Tuần 4","Giờ làm thêm   ","Tuần 5","Giờ làm thêm    "]
[null,"Thứ Hai"]
[null,"Thứ Ba"]
[null,"Thứ Tư"]
[null,"Thứ Năm"]
[null,"Thứ Sáu"]
[null,"Thứ Bảy"]
[null,"Chủ Nhật"]
[null,"Tổng số giờ hàng tuần",{"$f":"SUBTOTAL(109,Tháng_3[Tuần 1])","v":0},{"$f":"SUBTOTAL(109,Tháng_3[Giờ làm thêm])","v":0},{"$f":"SUBTOTAL(109,Tháng_3[Tuần 2])","v":0},{"$f":"SUBTOTAL(109,Tháng_3[[Giờ làm thêm ]])","v":0},{"$f":"SUBTOTAL(109,Tháng_3[Tuần 3])","v":0},{"$f":"SUBTOTAL(109,Tháng_3[[Giờ làm thêm  ]])","v":0},{"$f":"SUBTOTAL(109,Tháng_3[Tuần 4])","v":0},{"$f":"SUBTOTAL(109,Tháng_3[[Giờ làm thêm   ]])","v":0},{"$f":"SUBTOTAL(109,Tháng_3[Tuần 5])","v":0},{"$f":"SUBTOTAL(109,Tháng_3[[Giờ làm thêm    ]])","v":0}]
[null,"Tổng Thg3: Số giờ làm việc thông thường",{"$f":"SUM(Tháng_3[[#Totals],[Tuần 1]],Tháng_3[[#Totals],[Tuần 2]],Tháng_3[[#Totals],[Tuần 3]],Tháng_3[[#Totals],[Tuần 4]],Tháng_3[[#Totals],[Tuần 5]])","v":0},"Tổng Thg3: Giờ làm thêm",null,{"$f":"SUM(Tháng_3[[#Totals],[Giờ làm thêm]],Tháng_3[[#Totals],[Giờ làm thêm ]],Tháng_3[[#Totals],[Giờ làm thêm  ]],Tháng_3[[#Totals],[Giờ làm thêm   ]],Tháng_3[[#Totals],[Giờ làm thêm    ]])","v":0}]
[]
[null,"Tháng Tư, Tháng Năm, Tháng Sáu      Phiếu chấm công nhân viên: Hàng ngày, hàng tuần, hàng tháng, hàng năm"]
[null,"Tháng Tư","Tuần 1","Giờ làm thêm","Tuần 2","Giờ làm thêm ","Tuần 3","Giờ làm thêm  ","Tuần 4","Giờ làm thêm   ","Tuần 5","Giờ làm thêm    "]
[null,"Thứ Hai"]
[null,"Thứ Ba"]
[null,"Thứ Tư"]
[null,"Thứ Năm"]
[null,"Thứ Sáu"]
[null,"Thứ Bảy"]
[null,"Chủ Nhật"]
[null,"Tổng số giờ hàng tuần",{"$f":"SUBTOTAL(109,Tháng_4[Tuần 1])","v":0},{"$f":"SUBTOTAL(109,Tháng_4[Giờ làm thêm])","v":0},{"$f":"SUBTOTAL(109,Tháng_4[Tuần 2])","v":0},{"$f":"SUBTOTAL(109,Tháng_4[[Giờ làm thêm ]])","v":0},{"$f":"SUBTOTAL(109,Tháng_4[Tuần 3])","v":0},{"$f":"SUBTOTAL(109,Tháng_4[[Giờ làm thêm  ]])","v":0},{"$f":"SUBTOTAL(109,Tháng_4[Tuần 4])","v":0},{"$f":"SUBTOTAL(109,Tháng_4[[Giờ làm thêm   ]])","v":0},{"$f":"SUBTOTAL(109,Tháng_4[Tuần 5])","v":0},{"$f":"SUBTOTAL(109,Tháng_4[[Giờ làm thêm    ]])","v":0}]
[null,"Tổng Thg4: Số giờ làm việc thông thường",{"$f":"SUM(Tháng_4[[#Totals],[Tuần 1]],Tháng_4[[#Totals],[Tuần 2]],Tháng_4[[#Totals],[Tuần 3]],Tháng_4[[#Totals],[Tuần 4]],Tháng_4[[#Totals],[Tuần 5]])","v":0},"Tổng Thg4: Giờ làm thêm",null,{"$f":"SUM(Tháng_4[[#Totals],[Giờ làm thêm]],Tháng_4[[#Totals],[Giờ làm thêm ]],Tháng_4[[#Totals],[Giờ làm thêm  ]],Tháng_4[[#Totals],[Giờ làm thêm   ]],Tháng_4[[#Totals],[Giờ làm thêm    ]])","v":0}]
[]
[null,"Tháng Năm","Tuần 1","Giờ làm thêm","Tuần 2","Giờ làm thêm ","Tuần 3","Giờ làm thêm  ","Tuần 4","Giờ làm thêm   ","Tuần 5","Giờ làm thêm    "]
[null,"Thứ Hai"]
[null,"Thứ Ba"]
[null,"Thứ Tư"]
[null,"Thứ Năm"]
[null,"Thứ Sáu"]
[null,"Thứ Bảy"]
[null,"Chủ Nhật"]
[null,"Tổng số giờ hàng tuần",{"$f":"SUBTOTAL(109,Tháng_5[Tuần 1])","v":0},{"$f":"SUBTOTAL(109,Tháng_5[Giờ làm thêm])","v":0},{"$f":"SUBTOTAL(109,Tháng_5[Tuần 2])","v":0},{"$f":"SUBTOTAL(109,Tháng_5[[Giờ làm thêm ]])","v":0},{"$f":"SUBTOTAL(109,Tháng_5[Tuần 3])","v":0},{"$f":"SUBTOTAL(109,Tháng_5[[Giờ làm thêm  ]])","v":0},{"$f":"SUBTOTAL(109,Tháng_5[Tuần 4])","v":0},{"$f":"SUBTOTAL(109,Tháng_5[[Giờ làm thêm   ]])","v":0},{"$f":"SUBTOTAL(109,Tháng_5[Tuần 5])","v":0},{"$f":"SUBTOTAL(109,Tháng_5[[Giờ làm thêm    ]])","v":0}]
[null,"Tổng Thg5: Số giờ làm việc thông thường",{"$f":"SUM(Tháng_5[[#Totals],[Tuần 1]],Tháng_5[[#Totals],[Tuần 2]],Tháng_5[[#Totals],[Tuần 3]],Tháng_5[[#Totals],[Tuần 4]],Tháng_5[[#Totals],[Tuần 5]])","v":0},"Tổng Thg5: Giờ làm thêm",null,{"$f":"SUM(Tháng_5[[#Totals],[Giờ làm thêm]],Tháng_5[[#Totals],[Giờ làm thêm ]],Tháng_5[[#Totals],[Giờ làm thêm  ]],Tháng_5[[#Totals],[Giờ làm thêm   ]],Tháng_5[[#Totals],[Giờ làm thêm    ]])","v":0}]
[]
[null,"Tháng Sáu","Tuần 1","Giờ làm thêm","Tuần 2","Giờ làm thêm ","Tuần 3","Giờ làm thêm  ","Tuần 4","Giờ làm thêm   ","Tuần 5","Giờ làm thêm    "]
[null,"Thứ Hai"]
[null,"Thứ Ba"]
[null,"Thứ Tư"]
[null,"Thứ Năm"]
[null,"Thứ Sáu"]
[null,"Thứ Bảy"]
[null,"Chủ Nhật"]
[null,"Tổng số giờ hàng tuần",{"$f":"SUBTOTAL(109,Tháng_6[Tuần 1])","v":0},{"$f":"SUBTOTAL(109,Tháng_6[Giờ làm thêm])","v":0},{"$f":"SUBTOTAL(109,Tháng_6[Tuần 2])","v":0},{"$f":"SUBTOTAL(109,Tháng_6[[Giờ làm thêm ]])","v":0},{"$f":"SUBTOTAL(109,Tháng_6[Tuần 3])","v":0},{"$f":"SUBTOTAL(109,Tháng_6[[Giờ làm thêm  ]])","v":0},{"$f":"SUBTOTAL(109,Tháng_6[Tuần 4])","v":0},{"$f":"SUBTOTAL(109,Tháng_6[[Giờ làm thêm   ]])","v":0},{"$f":"SUBTOTAL(109,Tháng_6[Tuần 5])","v":0},{"$f":"SUBTOTAL(109,Tháng_6[[Giờ làm thêm    ]])","v":0}]
[null,"Tổng Thg6: Số giờ làm việc thông thường",{"$f":"SUM(Tháng_6[[#Totals],[Tuần 1]],Tháng_6[[#Totals],[Tuần 2]],Tháng_6[[#Totals],[Tuần 3]],Tháng_6[[#Totals],[Tuần 4]],Tháng_6[[#Totals],[Tuần 5]])","v":0},"Tổng Thg6: Giờ làm thêm",null,{"$f":"SUM(Tháng_6[[#Totals],[Giờ làm thêm]],Tháng_6[[#Totals],[Giờ làm thêm ]],Tháng_6[[#Totals],[Giờ làm thêm  ]],Tháng_6[[#Totals],[Giờ làm thêm   ]],Tháng_6[[#Totals],[Giờ làm thêm    ]])","v":0}]
[]
[null,"Tháng Bảy, Tháng Tám, Tháng Chín      Phiếu chấm công nhân viên: Hàng ngày, hàng tuần, hàng tháng, hàng năm"]
[null,"Tháng Bảy","Tuần 1","Giờ làm thêm","Tuần 2","Giờ làm thêm ","Tuần 3","Giờ làm thêm  ","Tuần 4","Giờ làm thêm   ","Tuần 5","Giờ làm thêm    "]
[null,"Thứ Hai"]
[null,"Thứ Ba"]
[null,"Thứ Tư"]
[null,"Thứ Năm"]
[null,"Thứ Sáu"]
[null,"Thứ Bảy"]
[null,"Chủ Nhật"]
[null,"Tổng số giờ hàng tuần",{"$f":"SUBTOTAL(109,Tháng_7[Tuần 1])","v":0},{"$f":"SUBTOTAL(109,Tháng_7[Giờ làm thêm])","v":0},{"$f":"SUBTOTAL(109,Tháng_7[Tuần 2])","v":0},{"$f":"SUBTOTAL(109,Tháng_7[[Giờ làm thêm ]])","v":0},{"$f":"SUBTOTAL(109,Tháng_7[Tuần 3])","v":0},{"$f":"SUBTOTAL(109,Tháng_7[[Giờ làm thêm  ]])","v":0},{"$f":"SUBTOTAL(109,Tháng_7[Tuần 4])","v":0},{"$f":"SUBTOTAL(109,Tháng_7[[Giờ làm thêm   ]])","v":0},{"$f":"SUBTOTAL(109,Tháng_7[Tuần 5])","v":0},{"$f":"SUBTOTAL(109,Tháng_7[[Giờ làm thêm    ]])","v":0}]
[null,"Tổng Thg7: Số giờ làm việc thông thường",{"$f":"SUM(Tháng_7[[#Totals],[Tuần 1]],Tháng_7[[#Totals],[Tuần 2]],Tháng_7[[#Totals],[Tuần 3]],Tháng_7[[#Totals],[Tuần 4]],Tháng_7[[#Totals],[Tuần 5]])","v":0},"Tổng Thg7: Giờ làm thêm",null,{"$f":"SUM(Tháng_7[[#Totals],[Giờ làm thêm]],Tháng_7[[#Totals],[Giờ làm thêm ]],Tháng_7[[#Totals],[Giờ làm thêm  ]],Tháng_7[[#Totals],[Giờ làm thêm   ]],Tháng_7[[#Totals],[Giờ làm thêm    ]])","v":0}]
[]
[null,"Tháng Tám","Tuần 1","Giờ làm thêm","Tuần 2","Giờ làm thêm ","Tuần 3","Giờ làm thêm  ","Tuần 4","Giờ làm thêm   ","Tuần 5","Giờ làm thêm    "]
[null,"Thứ Hai"]
[null,"Thứ Ba"]
[null,"Thứ Tư"]
[null,"Thứ Năm"]
[null,"Thứ Sáu"]
[null,"Thứ Bảy"]
[null,"Chủ Nhật"]
[null,"Tổng số giờ hàng tuần",{"$f":"SUBTOTAL(109,Tháng_8[Tuần 1])","v":0},{"$f":"SUBTOTAL(109,Tháng_8[Giờ làm thêm])","v":0},{"$f":"SUBTOTAL(109,Tháng_8[Tuần 2])","v":0},{"$f":"SUBTOTAL(109,Tháng_8[[Giờ làm thêm ]])","v":0},{"$f":"SUBTOTAL(109,Tháng_8[Tuần 3])","v":0},{"$f":"SUBTOTAL(109,Tháng_8[[Giờ làm thêm  ]])","v":0},{"$f":"SUBTOTAL(109,Tháng_8[Tuần 4])","v":0},{"$f":"SUBTOTAL(109,Tháng_8[[Giờ làm thêm   ]])","v":0},{"$f":"SUBTOTAL(109,Tháng_8[Tuần 5])","v":0},{"$f":"SUBTOTAL(109,Tháng_8[[Giờ làm thêm    ]])","v":0}]
[null,"Tổng Thg8: Số giờ làm việc thông thường",{"$f":"SUM(Tháng_8[[#Totals],[Tuần 1]],Tháng_8[[#Totals],[Tuần 2]],Tháng_8[[#Totals],[Tuần 3]],Tháng_8[[#Totals],[Tuần 4]],Tháng_8[[#Totals],[Tuần 5]])","v":0},"Tổng Thg8: Giờ làm thêm",null,{"$f":"SUM(Tháng_8[[#Totals],[Giờ làm thêm]],Tháng_8[[#Totals],[Giờ làm thêm ]],Tháng_8[[#Totals],[Giờ làm thêm  ]],Tháng_8[[#Totals],[Giờ làm thêm   ]],Tháng_8[[#Totals],[Giờ làm thêm    ]])","v":0}]
[]
[null,"Tháng Chín","Tuần 1","Giờ làm thêm","Tuần 2","Giờ làm thêm ","Tuần 3","Giờ làm thêm  ","Tuần 4","Giờ làm thêm   ","Tuần 5","Giờ làm thêm    "]
[null,"Thứ Hai"]
[null,"Thứ Ba"]
[null,"Thứ Tư"]
[null,"Thứ Năm"]
[null,"Thứ Sáu"]
[null,"Thứ Bảy"]
[null,"Chủ Nhật"]
[null,"Tổng số giờ hàng tuần",{"$f":"SUBTOTAL(109,Tháng_9[Tuần 1])","v":0},{"$f":"SUBTOTAL(109,Tháng_9[Giờ làm thêm])","v":0},{"$f":"SUBTOTAL(109,Tháng_9[Tuần 2])","v":0},{"$f":"SUBTOTAL(109,Tháng_9[[Giờ làm thêm ]])","v":0},{"$f":"SUBTOTAL(109,Tháng_9[Tuần 3])","v":0},{"$f":"SUBTOTAL(109,Tháng_9[[Giờ làm thêm  ]])","v":0},{"$f":"SUBTOTAL(109,Tháng_9[Tuần 4])","v":0},{"$f":"SUBTOTAL(109,Tháng_9[[Giờ làm thêm   ]])","v":0},{"$f":"SUBTOTAL(109,Tháng_9[Tuần 5])","v":0},{"$f":"SUBTOTAL(109,Tháng_9[[Giờ làm thêm    ]])","v":0}]
[null,"Tổng Thg9: Số giờ làm việc thông thường",{"$f":"SUM(Tháng_9[[#Totals],[Tuần 1]],Tháng_9[[#Totals],[Tuần 2]],Tháng_9[[#Totals],[Tuần 3]],Tháng_9[[#Totals],[Tuần 4]],Tháng_9[[#Totals],[Tuần 5]])","v":0},"Tổng Thg9: Giờ làm thêm",null,{"$f":"SUM(Tháng_9[[#Totals],[Giờ làm thêm]],Tháng_9[[#Totals],[Giờ làm thêm ]],Tháng_9[[#Totals],[Giờ làm thêm  ]],Tháng_9[[#Totals],[Giờ làm thêm   ]],Tháng_9[[#Totals],[Giờ làm thêm    ]])","v":0}]
[]
[null,"Tháng Mười, Tháng Mười Một, Tháng Mười Hai      Phiếu chấm công nhân viên: Hàng ngày, hàng tuần, hàng tháng, hàng năm"]
[null,"Tháng Mười","Tuần 1","Giờ làm thêm","Tuần 2","Giờ làm thêm ","Tuần 3","Giờ làm thêm  ","Tuần 4","Giờ làm thêm   ","Tuần 5","Giờ làm thêm    "]
[null,"Thứ Hai"]
[null,"Thứ Ba"]
[null,"Thứ Tư"]
[null,"Thứ Năm"]
[null,"Thứ Sáu"]
[null,"Thứ Bảy"]
[null,"Chủ Nhật"]
[null,"Tổng số giờ hàng tuần",{"$f":"SUBTOTAL(109,Tháng_10[Tuần 1])","v":0},{"$f":"SUBTOTAL(109,Tháng_10[Giờ làm thêm])","v":0},{"$f":"SUBTOTAL(109,Tháng_10[Tuần 2])","v":0},{"$f":"SUBTOTAL(109,Tháng_10[[Giờ làm thêm ]])","v":0},{"$f":"SUBTOTAL(109,Tháng_10[Tuần 3])","v":0},{"$f":"SUBTOTAL(109,Tháng_10[[Giờ làm thêm  ]])","v":0},{"$f":"SUBTOTAL(109,Tháng_10[Tuần 4])","v":0},{"$f":"SUBTOTAL(109,Tháng_10[[Giờ làm thêm   ]])","v":0},{"$f":"SUBTOTAL(109,Tháng_10[Tuần 5])","v":0},{"$f":"SUBTOTAL(109,Tháng_10[[Giờ làm thêm    ]])","v":0}]
[null,"Tổng Thg10: Số giờ làm việc thông thường",{"$f":"SUM(Tháng_10[[#Totals],[Tuần 1]],Tháng_10[[#Totals],[Tuần 2]],Tháng_10[[#Totals],[Tuần 3]],Tháng_10[[#Totals],[Tuần 4]],Tháng_10[[#Totals],[Tuần 5]])","v":0},"Tổng Thg10: Giờ làm thêm",null,{"$f":"SUM(Tháng_10[[#Totals],[Giờ làm thêm]],Tháng_10[[#Totals],[Giờ làm thêm ]],Tháng_10[[#Totals],[Giờ làm thêm  ]],Tháng_10[[#Totals],[Giờ làm thêm   ]],Tháng_10[[#Totals],[Giờ làm thêm    ]])","v":0}]
[]
[null,"Tháng Mười Một","Tuần 1","Giờ làm thêm","Tuần 2","Giờ làm thêm ","Tuần 3","Giờ làm thêm  ","Tuần 4","Giờ làm thêm   ","Tuần 5","Giờ làm thêm    "]
[null,"Thứ Hai"]
[null,"Thứ Ba"]
[null,"Thứ Tư"]
[null,"Thứ Năm"]
[null,"Thứ Sáu"]
[null,"Thứ Bảy"]
[null,"Chủ Nhật"]
[null,"Tổng số giờ hàng tuần",{"$f":"SUBTOTAL(109,Tháng_11[Tuần 1])","v":0},{"$f":"SUBTOTAL(109,Tháng_11[Giờ làm thêm])","v":0},{"$f":"SUBTOTAL(109,Tháng_11[Tuần 2])","v":0},{"$f":"SUBTOTAL(109,Tháng_11[[Giờ làm thêm ]])","v":0},{"$f":"SUBTOTAL(109,Tháng_11[Tuần 3])","v":0},{"$f":"SUBTOTAL(109,Tháng_11[[Giờ làm thêm  ]])","v":0},{"$f":"SUBTOTAL(109,Tháng_11[Tuần 4])","v":0},{"$f":"SUBTOTAL(109,Tháng_11[[Giờ làm thêm   ]])","v":0},{"$f":"SUBTOTAL(109,Tháng_11[Tuần 5])","v":0},{"$f":"SUBTOTAL(109,Tháng_11[[Giờ làm thêm    ]])","v":0}]
[null,"Tổng Thg11: Số giờ làm việc thông thường",{"$f":"SUM(Tháng_11[[#Totals],[Tuần 1]],Tháng_11[[#Totals],[Tuần 2]],Tháng_11[[#Totals],[Tuần 3]],Tháng_11[[#Totals],[Tuần 4]],Tháng_11[[#Totals],[Tuần 5]])","v":0},"Tổng Thg11: Giờ làm thêm",null,{"$f":"SUM(Tháng_11[[#Totals],[Giờ làm thêm]],Tháng_11[[#Totals],[Giờ làm thêm ]],Tháng_11[[#Totals],[Giờ làm thêm  ]],Tháng_11[[#Totals],[Giờ làm thêm   ]],Tháng_11[[#Totals],[Giờ làm thêm    ]])","v":0}]
[]
[null,"Tháng Mười Hai","Tuần 1","Giờ làm thêm","Tuần 2","Giờ làm thêm ","Tuần 3","Giờ làm thêm  ","Tuần 4","Giờ làm thêm   ","Tuần 5","Giờ làm thêm    "]
[null,"Thứ Hai"]
[null,"Thứ Ba"]
[null,"Thứ Tư"]
[null,"Thứ Năm"]
[null,"Thứ Sáu"]
[null,"Thứ Bảy"]
[null,"Chủ Nhật"]
[null,"Tổng số giờ hàng tuần",{"$f":"SUBTOTAL(109,Tháng_12[Tuần 1])","v":0},{"$f":"SUBTOTAL(109,Tháng_12[Giờ làm thêm])","v":0},{"$f":"SUBTOTAL(105,Tháng_12[Tuần 2])","v":0},{"$f":"SUBTOTAL(109,Tháng_12[[Giờ làm thêm ]])","v":0},{"$f":"SUBTOTAL(109,Tháng_12[Tuần 3])","v":0},{"$f":"SUBTOTAL(109,Tháng_12[[Giờ làm thêm  ]])","v":0},{"$f":"SUBTOTAL(109,Tháng_12[Tuần 4])","v":0},{"$f":"SUBTOTAL(109,Tháng_12[[Giờ làm thêm   ]])","v":0},{"$f":"SUBTOTAL(109,Tháng_12[Tuần 5])","v":0},{"$f":"SUBTOTAL(109,Tháng_12[[Giờ làm thêm    ]])","v":0}]
[null,"Tổng Thg12: Số giờ làm việc thông thường",{"$f":"SUM(Tháng_12[[#Totals],[Tuần 1]],Tháng_12[[#Totals],[Tuần 2]],Tháng_12[[#Totals],[Tuần 3]],Tháng_12[[#Totals],[Tuần 4]],Tháng_12[[#Totals],[Tuần 5]])","v":0},"Tổng Thg12: Giờ làm thêm",null,{"$f":"SUM(Tháng_12[[#Totals],[Giờ làm thêm]],Tháng_12[[#Totals],[Giờ làm thêm ]],Tháng_12[[#Totals],[Giờ làm thêm  ]],Tháng_12[[#Totals],[Giờ làm thêm   ]],Tháng_12[[#Totals],[Giờ làm thêm    ]])","v":0}]